[Event "Kragero Resort A 2020"]
[Site "Kragero"]
[Date "2020.02.19"]
[Round "1.12"]
[White "Holm, Kristian Stuvik"]
[Black "Skotheim, Andreas"]
[Result "1-0"]
[ECO "A85"]
[WhiteElo "2467"]
[BlackElo "2140"]
[Annotator "ChessBase"]
[PlyCount "91"]
[EventDate "2020.02.19"]
[EventType "swiss"]
[EventCountry "NOR"]
[SourceTitle "playchess.com"]
[Source "ChessBase"]
[SourceQuality "1"]
[TimeControl "5400+30"]

1. c4 {[%emt 0:00:00]} f5 {[%emt 0:00:43]} 2. d4 {[%emt 0:00:26]} Nf6 {[%emt 0:00:00]} 3. Nc3 {[%emt 0:00:20]} d6 {[%emt 0:00:18]} 4. Bg5 {[%emt 0:04:06]} Nbd7 {[%emt 0:00:46]} 5. Qc2 {[%emt 0:00:00]} g6 {[%emt 0:00:14]} 6. O-O-O {[%emt 0:04:33]} c6 {[%emt 0:03:43]} 7. Nf3 {[%emt 0:06:41]} Bg7 {[%emt 0:03:56]} 8. e3 {[%emt 0:00:57]} O-O {[%emt 0:04:41]} 9. h4 {[%emt 0:02:43]} h6 {[%emt 0:08:51]} 10. Bf4 {[%emt 0:04:14]} Qa5 {[%emt 0:00:00]} 11. Nd2 {[%emt 0:10:13]} a6 {[%emt 0:17:35]} 12. c5 {[%emt 0:00:00]} d5 {[%emt 0:11:21]} 13. f3 {[%emt 0:00:00]} Ne8 {[%emt 0:08:05]} 14. Nb3 {[%emt 0:00:05]} Qd8 {[%emt 0:06:15]} 15. Bg3 {[%emt 0:05:58]} e5 {[%emt 0:00:00]} 16. dxe5 {[%emt 0:04:31]} Qe7 {[%emt 0:02:51]} 17. e4 {[%emt 0:07:11]} dxe4 {[%emt 0:03:28]} 18. f4 {[%emt 0:09:56]} Nxc5 {[%emt 0:08:11]} 19. Bf2 {[%emt 0:01:15]} Nxb3+ {[%emt 0:06:04]} 20. Qxb3+ {[%emt 0:00:14]} Kh8 {[%emt 0:01:49]} 21. Qb6 {[%emt 0:00:49]} Qf7 {[%emt 0:02:39]} 22. Qa5 {[%emt 0:09:59]} Nc7 {[%emt 0:02:15]} 23. h5 {[%emt 0:00:47]} gxh5 {[%emt 0:00:48]} 24. Be2 {[%emt 0:00:35]} Ne6 {[%emt 0:02:22]} 25. Bxh5 {[%emt 0:01:56]} Qc7 {[%emt 0:00:49]} 26. Qxc7 {[%emt 0:05:22]} Nxc7 {[%emt 0:00:05]} 27. Bc5 {[%emt 0:00:05]} Be6 {[%emt 0:01:28]} 28. Bxf8 {[%emt 0:00:06]} Bxf8 {[%emt 0:00:15]} 29. g4 {[%emt 0:05:26]} Bc5 {[%emt 0:02:08]} 30. Bg6 {[%emt 0:03:06]} Rf8 {[%emt 0:01:17]} 31. gxf5 {[%emt 0:00:32]} Bxf5 {[%emt 0:00:17]} 32. Bxf5 {[%emt 0:00:15]} Rxf5 {[%emt 0:00:11]} 33. Rd8+ {[%emt 0:00:24]} Kg7 {[%emt 0:00:59]} 34. Rd7+ {[%emt 0:00:10]} Rf7 {[%emt 0:00:05]} 35. Rxf7+ {[%emt 0:00:10]} Kxf7 {[%emt 0:00:07]} 36. Rxh6 {[%emt 0:00:14]} Kg7 {[%emt 0:01:15]} 37. Rh3 {[%emt 0:02:59]} Nd5 {[%emt 0:00:44]} 38. Nxd5 {[%emt 0:02:58]} cxd5 {[%emt 0:00:06]} 39. f5 {[%emt 0:00:05]} Bf2 {[%emt 0:01:04]} 40. Rc3 {[%emt 0:01:09]} d4 {[%emt 0:00:58]} 41. Rc7+ {[%emt 0:00:02]} Kh6 {[%emt 0:01:08]} 42. e6 {[%emt 0:00:38]} e3 {[%emt 0:00:07]} 43. e7 {[%emt 0:01:17]} e2 {[%emt 0:00:08]} 44. e8=Q {[%emt 0:00:07]} e1=Q+ {[%emt 0:01:15]} 45. Qxe1 {[%emt 0:00:04]} Bxe1 {[%emt 0:00:13]} 46. Rxb7 {[%emt 0:00:12]} 1-0

[Event "Kragero Resort A 2020"]
[Site "Kragero"]
[Date "2020.02.19"]
[Round "1.13"]
[White "Mansoor, Afras"]
[Black "Haldorsen, Benjamin"]
[Result "0-1"]
[ECO "A85"]
[WhiteElo "2105"]
[BlackElo "2462"]
[Annotator "ChessBase"]
[PlyCount "73"]
[EventDate "2020.02.19"]
[EventType "swiss"]
[EventCountry "NOR"]
[SourceTitle "playchess.com"]
[Source "ChessBase"]
[SourceQuality "1"]
[TimeControl "5400+30"]

1. c4 {[%emt 0:00:00]} f5 {[%emt 0:00:09]} 2. Nc3 {[%emt 0:00:00]} Nf6 {[%emt 0:00:07]} 3. Nf3 {[%emt 0:00:26]} g6 {[%emt 0:01:32]} 4. d4 {[%emt 0:05:20]} Bg7 {[%emt 0:02:13]} 5. Bf4 {[%emt 0:00:24]} d6 {[%emt 0:03:40]} 6. Qd2 {[%emt 0:06:06]} h6 {[%emt 0:07:39]} 7. h4 {[%emt 0:05:20]} e6 {[%emt 0:04:46]} 8. O-O-O {[%emt 0:09:01]} Nc6 {[%emt 0:03:50]} 9. Qc2 {[%emt 0:10:49]} O-O {[%emt 0:07:19]} 10. a3 {[%emt 0:13:57]} Qe7 {[%emt 0:06:02]} 11. Bh2 {[%emt 0:16:56]} Ng4 {[%emt 0:19:24]} 12. e4 {[%emt 0:04:07]} Nxh2 {[%emt 0:00:48]} 13. Rxh2 {[%emt 0:00:46]} e5 {[%emt 0:00:18]} 14. Nd5 {[%emt 0:05:13]} Qf7 {[%emt 0:00:33]} 15. dxe5 {[%emt 0:01:13]} Nxe5 {[%emt 0:07:58]} 16. Nxe5 {[%emt 0:00:46]} Bxe5 {[%emt 0:00:18]} 17. f4 {[%emt 0:00:27]} Bg7 {[%emt 0:00:16]} 18. h5 {[%emt 0:04:24]} gxh5 {[%emt 0:02:48]} 19. Be2 {[%emt 0:00:46]} h4 {[%emt 0:05:35]} 20. Rxh4 {[%emt 0:00:18]} c6 {[%emt 0:00:05]} 21. Bh5 {[%emt 0:00:39]} Qd7 {[%emt 0:00:13]} 22. Ne3 {[%emt 0:05:57]} Qe7 {[%emt 0:01:14]} 23. Qf2 {[%emt 0:01:21]} fxe4 {[%emt 0:02:21]} 24. g4 {[%emt 0:00:09]} Be6 {[%emt 0:02:52]} 25. Bg6 {[%emt 0:01:42]} Qf6 {[%emt 0:04:50]} 26. Bxe4 {[%emt 0:04:14]} Qxf4 {[%emt 0:00:09]} 27. Qxf4 {[%emt 0:00:09]} Rxf4 {[%emt 0:00:05]} 28. Bf5 {[%emt 0:00:11]} Bf7 {[%emt 0:00:22]} 29. Rxd6 {[%emt 0:00:48]} Re8 {[%emt 0:01:23]} 30. Rh3 {[%emt 0:00:54]} Rf2 {[%emt 0:00:57]} 31. Rd2 {[%emt 0:00:45]} Rxd2 {[%emt 0:00:19]} 32. Kxd2 {[%emt 0:00:04]} Bxb2 {[%emt 0:00:05]} 33. Rxh6 {[%emt 0:00:49]} Rxe3 {[%emt 0:00:37]} 34. Kxe3 {[%emt 0:02:09]} Bc1+ {[%emt 0:00:05]} 35. Kd3 {[%emt 0:00:28]} Bxh6 {[%emt 0:00:05]} 36. Bc8 {[%emt 0:00:04]} b6 {[%emt 0:00:35]} 37. Kd4 {[%emt 0:00:28]} 0-1

[Event "Kragero Resort A 2020"]
[Site "Kragero"]
[Date "2020.02.19"]
[Round "1.14"]
[White "Mirzoev, Emil"]
[Black "Lund, Terje"]
[Result "1-0"]
[ECO "E65"]
[WhiteElo "2452"]
[BlackElo "2086"]
[Annotator "ChessBase"]
[PlyCount "65"]
[EventDate "2020.02.19"]
[EventType "swiss"]
[EventCountry "NOR"]
[SourceTitle "playchess.com"]
[Source "ChessBase"]
[SourceQuality "1"]
[TimeControl "5400+30"]

1. Nf3 {[%emt 0:01:53]} Nf6 {[%emt 0:02:26]} 2. g3 {[%emt 0:00:49]} c5 {[%emt 0:01:17]} 3. Bg2 {[%emt 0:00:22]} Nc6 {[%emt 0:00:08]} 4. O-O {[%emt 0:00:12]} g6 {[%emt 0:01:57]} 5. c4 {[%emt 0:03:49]} Bg7 {[%emt 0:00:31]} 6. d4 {[%emt 0:00:19]} cxd4 {[%emt 0:00:30]} 7. Nxd4 {[%emt 0:00:04]} O-O {[%emt 0:00:19]} 8. Nc3 {[%emt 0:00:03]} d6 {[%emt 0:02:44]} 9. Nxc6 {[%emt 0:01:20]} bxc6 {[%emt 0:00:05]} 10. Bxc6 {[%emt 0:00:02]} Rb8 {[%emt 0:00:08]} 11. Bg2 {[%emt 0:00:01]} Qa5 {[%emt 0:00:08]} 12. Nb5 {[%emt 0:01:25]} a6 {[%emt 0:18:18]} 13. Nd4 {[%emt 0:01:42]} Bd7 {[%emt 0:00:36]} 14. b3 {[%emt 0:07:24]} Rfc8 {[%emt 0:05:50]} 15. Bd2 {[%emt 0:03:14]} Qc5 {[%emt 0:05:33]} 16. e3 {[%emt 0:03:17]} Bg4 {[%emt 0:13:10]} 17. Qe1 {[%emt 0:00:51]} Qh5 {[%emt 0:05:09]} 18. f3 {[%emt 0:03:07]} Bd7 {[%emt 0:00:51]} 19. Rc1 {[%emt 0:00:21]} d5 {[%emt 0:13:22]} 20. c5 {[%emt 0:01:30]} e5 {[%emt 0:01:34]} 21. g4 {[%emt 0:01:00]} Bxg4 {[%emt 0:07:43]} 22. fxg4 {[%emt 0:00:11]} Nxg4 {[%emt 0:00:09]} 23. Nf3 {[%emt 0:00:58]} e4 {[%emt 0:00:37]} 24. h3 {[%emt 0:00:03]} Nf6 {[%emt 0:05:34]} 25. Nd4 {[%emt 0:01:49]} Nd7 {[%emt 0:00:23]} 26. Qg3 {[%emt 0:01:04]} Be5 {[%emt 0:06:12]} 27. Qf2 {[%emt 0:01:04]} f5 {[%emt 0:01:01]} 28. Ne6 {[%emt 0:00:02]} Rc6 {[%emt 0:03:50]} 29. Nf4 {[%emt 0:00:36]} Qg5 {[%emt 0:00:22]} 30. Bc3 {[%emt 0:00:23]} Bxc3 {[%emt 0:02:50]} 31. Rxc3 {[%emt 0:00:01]} Rb5 {[%emt 0:00:55]} 32. Qd2 {[%emt 0:00:21]} Nf6 {[%emt 0:00:56]} 33. Qd4 {[%emt 0:00:52]} 1-0

[Event "Kragero Resort A 2020"]
[Site "Kragero"]
[Date "2020.02.19"]
[Round "1.15"]
[White "Holleland, Sigve"]
[Black "Haug, Johannes"]
[Result "1/2-1/2"]
[ECO "E11"]
[WhiteElo "2076"]
[BlackElo "2426"]
[Annotator "NA"]
[PlyCount "56"]
[EventDate "2020.02.19"]
[EventType "swiss"]
[EventCountry "NOR"]
[SourceTitle "playchess.com"]
[Source "ChessBase"]
[SourceQuality "1"]
[TimeControl "5400+30"]

1. d4 {[%emt 0:00:00]} Nf6 {[%emt 0:00:00]} 2. c4 {[%emt 0:00:00]} e6 {[%emt 0:00:00]} 3. Nf3 {[%emt 0:00:00]} Bb4+ {[%emt 0:00:09]} 4. Bd2 {[%emt 0:00:11]} a5 {[%emt 0:00:31]} 5. g3 {[%emt 0:00:51]} d5 {[%emt 0:00:24]} 6. Bg2 {[%emt 0:00:40]} O-O {[%emt 0:02:05]} 7. O-O {[%emt 0:01:17]} Be7 {[%emt 0:01:23]} 8. Bf4 {[%emt 0:02:45]} c6 {[%emt 0:01:42]} 9. Ne5 {[%emt 0:05:31]} Nfd7 {[%emt 0:04:37]} 10. Nxd7 {[%emt 0:05:25]} Nxd7 {[%emt 0:00:25]} 11. Nd2 {[%emt 0:00:09]} b5 {[%emt 0:11:46]} 12. cxb5 {[%emt 0:02:34]} cxb5 {[%emt 0:06:30]} 13. e4 {[%emt 0:00:34]} Nb6 {[%emt 0:00:25]} 14. Rc1 {[%emt 0:02:06]} Bd6 {[%emt 0:13:59]} 15. Bxd6 {[%emt 0:00:40]} Qxd6 {[%emt 0:00:05]} 16. exd5 {[%emt 0:14:54]} Nxd5 {[%emt 0:07:07]} 17. Ne4 {[%emt 0:03:16]} Qb6 {[%emt 0:01:17]} 18. Rc5 {[%emt 0:15:05]} Bb7 {[%emt 0:09:51]} 19. Qe2 {[%emt 0:03:23]} b4 {[%emt 0:00:37]} 20. Rfc1 {[%emt 0:01:02]} h6 {[%emt 0:07:58]} 21. Nd2 {[%emt 0:09:57]} a4 {[%emt 0:04:01]} 22. Qe5 {[%emt 0:06:29]} Ra5 {[%emt 0:17:22]} 23. Rxa5 {[%emt 0:03:09]} Qxa5 {[%emt 0:00:04]} 24. Rc5 {[%emt 0:02:50]} Qa7 {[%emt 0:02:23]} 25. Nc4 {[%emt 0:02:36]} Ba8 {[%emt 0:00:07]} 26. Be4 {[%emt 0:05:20]} Rd8 {[%emt 0:02:25]} 27. f4 {[%emt 0:04:23]} Qe7 {[%emt 0:02:06]} 28. f5 {[%emt 0:00:43]} Qf6 {[%emt 0:01:48]} 1/2-1/2

[Event "Kragero Resort A 2020"]
[Site "Kragero"]
[Date "2020.02.19"]
[Round "1.16"]
[White "Seo, Jung Min"]
[Black "Woithe, Daniel"]
[Result "1-0"]
[ECO "A18"]
[WhiteElo "2424"]
[BlackElo "2067"]
[Annotator "NA"]
[PlyCount "131"]
[EventDate "2020.02.19"]
[EventType "swiss"]
[EventCountry "NOR"]
[SourceTitle "playchess.com"]
[Source "ChessBase"]
[SourceQuality "1"]
[TimeControl "5400+30"]

1. c4 {[%emt 0:00:00]} Nf6 {[%emt 0:00:00]} 2. Nc3 {[%emt 0:00:00]} e6 {[%emt 0:00:00]} 3. e4 {[%emt 0:00:00]} d5 {[%emt 0:00:00]} 4. cxd5 {[%emt 0:00:08]} exd5 {[%emt 0:00:04]} 5. e5 {[%emt 0:00:02]} Ne4 {[%emt 0:00:10]} 6. Nf3 {[%emt 0:00:28]} Bf5 {[%emt 0:06:42]} 7. d4 {[%emt 0:06:23]} Bb4 {[%emt 0:11:01]} 8. Qb3 {[%emt 0:00:39]} c5 {[%emt 0:07:01]} 9. Bb5+ {[%emt 0:00:11]} Nc6 {[%emt 0:01:05]} 10. O-O {[%emt 0:02:14]} Bxc3 {[%emt 0:01:56]} 11. bxc3 {[%emt 0:00:04]} O-O {[%emt 0:00:12]} 12. dxc5 {[%emt 0:07:39]} Nxc5 {[%emt 0:01:45]} 13. Qa3 {[%emt 0:00:10]} Ne4 {[%emt 0:03:49]} 14. Bxc6 {[%emt 0:06:54]} bxc6 {[%emt 0:00:06]} 15. Nd4 {[%emt 0:00:15]} Bd7 {[%emt 0:08:02]} 16. f3 {[%emt 0:00:09]} Ng5 {[%emt 0:01:59]} 17. Qd6 {[%emt 0:20:46]} Ne6 {[%emt 0:02:41]} 18. Ba3 {[%emt 0:01:10]} Re8 {[%emt 0:02:06]} 19. Nb3 {[%emt 0:09:24]} Nf4 {[%emt 0:09:19]} 20. Nd4 {[%emt 0:01:52]} Qg5 {[%emt 0:05:40]} 21. g3 {[%emt 0:00:05]} Rad8 {[%emt 0:00:44]} 22. Qc7 {[%emt 0:04:11]} Qxe5 {[%emt 0:14:21]} 23. Qxe5 {[%emt 0:03:56]} Nh3+ {[%emt 0:00:08]} 24. Kg2 {[%emt 0:00:36]} Rxe5 {[%emt 0:00:04]} 25. Bd6 {[%emt 0:01:27]} Ree8 {[%emt 0:01:59]} 26. Rfe1 {[%emt 0:00:35]} f6 {[%emt 0:07:07]} 27. Rxe8+ {[%emt 0:06:32]} Rxe8 {[%emt 0:03:24]} 28. Rb1 {[%emt 0:00:01]} Ng5 {[%emt 0:00:32]} 29. Rb7 {[%emt 0:00:11]} Rd8 {[%emt 0:01:22]} 30. Be7 {[%emt 0:00:50]} Bh3+ {[%emt 0:00:03]} 31. Kf2 {[%emt 0:00:07]} Rd7 {[%emt 0:00:05]} 32. Rb8+ {[%emt 0:02:01]} Kf7 {[%emt 0:00:07]} 33. Bb4 {[%emt 0:00:07]} c5 {[%emt 0:02:14]} 34. Bxc5 {[%emt 0:00:03]} Ne6 {[%emt 0:00:07]} 35. Nb3 {[%emt 0:00:41]} Bf5 {[%emt 0:01:14]} 36. Ke3 {[%emt 0:01:08]} Bb1 {[%emt 0:01:12]} 37. a3 {[%emt 0:00:24]} Ba2 {[%emt 0:00:04]} 38. Bd4 {[%emt 0:00:08]} Bxb3 {[%emt 0:00:16]} 39. Rxb3 {[%emt 0:00:01]} Nxd4 {[%emt 0:00:11]} 40. Kxd4 {[%emt 0:00:06]} Ke6 {[%emt 0:00:13]} 41. Rb5 {[%emt 0:01:29]} Rc7 {[%emt 0:01:44]} 42. Rc5 {[%emt 0:00:45]} Rd7 {[%emt 0:05:58]} 43. f4 {[%emt 0:01:19]} g5 {[%emt 0:00:43]} 44. f5+ {[%emt 0:06:53]} Ke7 {[%emt 0:03:02]} 45. Rxd5 {[%emt 0:00:21]} Rb7 {[%emt 0:00:02]} 46. Ra5 {[%emt 0:00:13]} h5 {[%emt 0:01:06]} 47. c4 {[%emt 0:00:30]} h4 {[%emt 0:00:31]} 48. gxh4 {[%emt 0:00:18]} gxh4 {[%emt 0:00:05]} 49. c5 {[%emt 0:00:27]} h3 {[%emt 0:00:17]} 50. Kd5 {[%emt 0:00:32]} Rd7+ {[%emt 0:00:28]} 51. Kc6 {[%emt 0:00:39]} Kd8 {[%emt 0:00:12]} 52. Ra4 {[%emt 0:00:46]} Rd2 {[%emt 0:00:37]} 53. Rxa7 {[%emt 0:00:08]} Rxh2 {[%emt 0:00:05]} 54. Rf7 {[%emt 0:00:41]} Ra2 {[%emt 0:00:17]} 55. Rxf6 {[%emt 0:00:12]} Rxa3 {[%emt 0:00:08]} 56. Rf8+ {[%emt 0:00:04]} Ke7 {[%emt 0:00:18]} 57. Rh8 {[%emt 0:00:03]} Kf6 {[%emt 0:01:00]} 58. Rh5 {[%emt 0:00:02]} Ke5 {[%emt 0:00:40]} 59. Kc7 {[%emt 0:00:49]} Rc3 {[%emt 0:00:47]} 60. c6 {[%emt 0:00:06]} h2 {[%emt 0:00:12]} 61. Rxh2 {[%emt 0:00:06]} Kxf5 {[%emt 0:00:12]} 62. Re2 {[%emt 0:00:06]} Rc1 {[%emt 0:00:34]} 63. Kd7 {[%emt 0:00:17]} Rd1+ {[%emt 0:00:13]} 64. Kc8 {[%emt 0:00:04]} Rc1 {[%emt 0:00:07]} 65. c7 {[%emt 0:00:03]} Kf6 {[%emt 0:00:14]} 66. Rb2 {[%emt 0:00:05]} 1-0

[Event "Kragero Resort A 2020"]
[Site "Kragero"]
[Date "2020.02.19"]
[Round "1.17"]
[White "Bergvoll, Mats"]
[Black "Gharibyan, Mamikon"]
[Result "0-1"]
[ECO "E49"]
[WhiteElo "2059"]
[BlackElo "2405"]
[Annotator "NA"]
[PlyCount "53"]
[EventDate "2020.02.19"]
[EventType "swiss"]
[EventCountry "NOR"]
[SourceTitle "playchess.com"]
[Source "ChessBase"]
[SourceQuality "1"]
[TimeControl "5400+30"]

1. d4 {[%emt 0:00:00]} Nf6 {[%emt 0:00:00]} 2. c4 {[%emt 0:00:00]} e6 {[%emt 0:00:04]} 3. Nc3 {[%emt 0:00:19]} Bb4 {[%emt 0:00:27]} 4. f3 {[%emt 0:00:26]} d5 {[%emt 0:00:56]} 5. a3 {[%emt 0:00:36]} Bxc3+ {[%emt 0:00:50]} 6. bxc3 {[%emt 0:00:10]} c5 {[%emt 0:00:08]} 7. cxd5 {[%emt 0:00:20]} exd5 {[%emt 0:03:36]} 8. e3 {[%emt 0:00:55]} O-O {[%emt 0:02:41]} 9. Bd3 {[%emt 0:01:14]} b6 {[%emt 0:02:35]} 10. Ne2 {[%emt 0:02:26]} Ba6 {[%emt 0:02:51]} 11. O-O {[%emt 0:04:14]} Re8 {[%emt 0:05:44]} 12. Ng3 {[%emt 0:03:23]} Bxd3 {[%emt 0:09:15]} 13. Qxd3 {[%emt 0:00:13]} Nc6 {[%emt 0:00:19]} 14. Bb2 {[%emt 0:09:34]} Na5 {[%emt 0:28:38]} 15. Rae1 {[%emt 0:10:09]} Nc4 {[%emt 0:02:04]} 16. Bc1 {[%emt 0:00:56]} Rc8 {[%emt 0:03:34]} 17. e4 {[%emt 0:07:08]} cxd4 {[%emt 0:00:56]} 18. cxd4 {[%emt 0:00:26]} dxe4 {[%emt 0:00:52]} 19. fxe4 {[%emt 0:01:15]} Ng4 {[%emt 0:08:49]} 20. Rd1 {[%emt 0:22:51]} Qh4 {[%emt 0:01:43]} 21. h3 {[%emt 0:00:14]} Nge3 {[%emt 0:00:15]} 22. Bxe3 {[%emt 0:00:37]} Qxg3 {[%emt 0:00:06]} 23. Rf3 {[%emt 0:01:22]} Qg6 {[%emt 0:01:10]} 24. e5 {[%emt 0:03:52]} Red8 {[%emt 0:04:51]} 25. Qb3 {[%emt 0:14:03]} Qe6 {[%emt 0:01:48]} 26. Rdf1 {[%emt 0:03:37]} Nxe5 {[%emt 0:00:33]} 27. Qd1 {[%emt 0:06:16]} 0-1

[Event "Kragero Resort A 2020"]
[Site "Kragero"]
[Date "2020.02.19"]
[Round "1.18"]
[White "Gretarsson, Helgi Ass"]
[Black "Sorensen, Simen"]
[Result "1-0"]
[ECO "D58"]
[WhiteElo "2403"]
[BlackElo "2041"]
[Annotator "NA"]
[PlyCount "61"]
[EventDate "2020.02.19"]
[EventType "swiss"]
[EventCountry "NOR"]
[SourceTitle "playchess.com"]
[Source "ChessBase"]
[SourceQuality "1"]
[TimeControl "5400+30"]

1. Nf3 {[%emt 0:00:00]} d5 {[%emt 0:00:00]} 2. d4 {[%emt 0:00:05]} Nf6 {[%emt 0:00:11]} 3. Bg5 {[%emt 0:00:30]} e6 {[%emt 0:01:16]} 4. e3 {[%emt 0:02:22]} Be7 {[%emt 0:03:46]} 5. c4 {[%emt 0:00:41]} O-O {[%emt 0:00:56]} 6. Nc3 {[%emt 0:00:05]} h6 {[%emt 0:05:34]} 7. Bh4 {[%emt 0:06:43]} b6 {[%emt 0:00:37]} 8. Be2 {[%emt 0:02:38]} Bb7 {[%emt 0:01:22]} 9. Bxf6 {[%emt 0:04:43]} Bxf6 {[%emt 0:00:22]} 10. cxd5 {[%emt 0:00:07]} exd5 {[%emt 0:00:27]} 11. b4 {[%emt 0:00:05]} Qd6 {[%emt 0:19:15]} 12. Qb3 {[%emt 0:00:40]} c6 {[%emt 0:07:26]} 13. O-O {[%emt 0:12:00]} Nd7 {[%emt 0:04:49]} 14. Rab1 {[%emt 0:00:36]} Rfd8 {[%emt 0:04:18]} 15. Rfe1 {[%emt 0:22:06]} a5 {[%emt 0:14:22]} 16. bxa5 {[%emt 0:00:55]} Rxa5 {[%emt 0:00:15]} 17. a4 {[%emt 0:00:06]} Rb8 {[%emt 0:03:17]} 18. e4 {[%emt 0:05:00]} dxe4 {[%emt 0:01:37]} 19. Nxe4 {[%emt 0:00:02]} Qf4 {[%emt 0:03:25]} 20. Bc4 {[%emt 0:02:41]} Be7 {[%emt 0:07:40]} 21. Be6 {[%emt 0:05:21]} fxe6 {[%emt 0:03:00]} 22. Qxe6+ {[%emt 0:00:09]} Qf7 {[%emt 0:01:43]} 23. Qxd7 {[%emt 0:00:13]} Ba8 {[%emt 0:06:33]} 24. Ne5 {[%emt 0:08:05]} Qe8 {[%emt 0:01:05]} 25. Qe6+ {[%emt 0:00:30]} Kh7 {[%emt 0:00:49]} 26. Nd7 {[%emt 0:00:51]} Rd8 {[%emt 0:01:18]} 27. Nef6+ {[%emt 0:05:21]} gxf6 {[%emt 0:00:55]} 28. Nxf6+ {[%emt 0:00:15]} Bxf6 {[%emt 0:00:16]} 29. Qxf6 {[%emt 0:00:05]} Qxe1+ {[%emt 0:05:33]} 30. Rxe1 {[%emt 0:00:06]} Rd7 {[%emt 0:00:08]} 31. Re6 {[%emt 0:00:53]} 1-0

[Event "Kragero Resort A 2020"]
[Site "Kragero"]
[Date "2020.02.19"]
[Round "1.19"]
[White "Tunsjo, Axel"]
[Black "Osmak, Iulija"]
[Result "0-1"]
[ECO "C11"]
[WhiteElo "2035"]
[BlackElo "2394"]
[Annotator "NA"]
[PlyCount "54"]
[EventDate "2020.02.19"]
[EventType "swiss"]
[EventCountry "NOR"]
[SourceTitle "playchess.com"]
[Source "ChessBase"]
[SourceQuality "1"]
[TimeControl "5400+30"]

1. e4 {[%emt 0:00:00]} e6 {[%emt 0:01:39]} 2. Nf3 {[%emt 0:00:00]} d5 {[%emt 0:00:05]} 3. Nc3 {[%emt 0:00:00]} Nf6 {[%emt 0:00:55]} 4. e5 {[%emt 0:00:23]} Nfd7 {[%emt 0:00:05]} 5. d4 {[%emt 0:00:07]} c5 {[%emt 0:00:09]} 6. dxc5 {[%emt 0:00:08]} Nc6 {[%emt 0:00:20]} 7. Bf4 {[%emt 0:00:06]} Nxc5 {[%emt 0:01:47]} 8. Be2 {[%emt 0:03:54]} Be7 {[%emt 0:00:36]} 9. O-O {[%emt 0:00:22]} O-O {[%emt 0:01:36]} 10. Re1 {[%emt 0:02:50]} f6 {[%emt 0:04:40]} 11. exf6 {[%emt 0:00:14]} Bxf6 {[%emt 0:00:22]} 12. Bg3 {[%emt 0:00:09]} Ne4 {[%emt 0:04:11]} 13. Bd3 {[%emt 0:11:44]} Nxg3 {[%emt 0:04:25]} 14. hxg3 {[%emt 0:00:07]} Kh8 {[%emt 0:10:48]} 15. Qd2 {[%emt 0:07:57]} e5 {[%emt 0:03:19]} 16. Bb5 {[%emt 0:07:18]} e4 {[%emt 0:02:09]} 17. Nh2 {[%emt 0:00:35]} Be6 {[%emt 0:10:40]} 18. Rad1 {[%emt 0:03:51]} Qb6 {[%emt 0:03:44]} 19. Ba4 {[%emt 0:10:51]} Bd4 {[%emt 0:10:44]} 20. Nf3 {[%emt 0:03:24]} Bxc3 {[%emt 0:06:10]} 21. bxc3 {[%emt 0:01:35]} Bg4 {[%emt 0:02:57]} 22. Rb1 {[%emt 0:00:56]} Qc7 {[%emt 0:03:38]} 23. Nd4 {[%emt 0:05:17]} Rad8 {[%emt 0:02:44]} 24. Rb5 {[%emt 0:04:21]} Bc8 {[%emt 0:06:55]} 25. Reb1 {[%emt 0:04:43]} Ne5 {[%emt 0:01:54]} 26. Bb3 {[%emt 0:00:27]} Ng4 {[%emt 0:01:26]} 27. Bxd5 {[%emt 0:03:32]} e3 {[%emt 0:02:28]} 0-1

[Event "Kragero Resort A 2020"]
[Site "Kragero"]
[Date "2020.02.19"]
[Round "1.20"]
[White "Kaasen, Tor Fredrik"]
[Black "Jonsson, Gauti Pall"]
[Result "1-0"]
[ECO "B47"]
[WhiteElo "2393"]
[BlackElo "2027"]
[Annotator "NA"]
[PlyCount "101"]
[EventDate "2020.02.19"]
[EventType "swiss"]
[EventCountry "NOR"]
[SourceTitle "playchess.com"]
[Source "ChessBase"]
[SourceQuality "1"]
[TimeControl "5400+30"]

1. e4 {[%emt 0:00:00]} c5 {[%emt 0:00:00]} 2. Nf3 {[%emt 0:00:35]} e6 {[%emt 0:00:19]} 3. d4 {[%emt 0:00:35]} cxd4 {[%emt 0:00:12]} 4. Nxd4 {[%emt 0:00:16]} Nc6 {[%emt 0:00:49]} 5. Nc3 {[%emt 0:01:27]} Qc7 {[%emt 0:00:51]} 6. g3 {[%emt 0:00:32]} a6 {[%emt 0:00:44]} 7. Bg2 {[%emt 0:00:18]} Nf6 {[%emt 0:00:35]} 8. O-O {[%emt 0:00:15]} Nxd4 {[%emt 0:00:43]} 9. Qxd4 {[%emt 0:00:07]} Bc5 {[%emt 0:00:37]} 10. Bf4 {[%emt 0:00:54]} d6 {[%emt 0:01:01]} 11. Qd2 {[%emt 0:00:26]} e5 {[%emt 0:00:45]} 12. Bg5 {[%emt 0:00:46]} Be6 {[%emt 0:02:30]} 13. Bxf6 {[%emt 0:04:27]} gxf6 {[%emt 0:00:12]} 14. Nd5 {[%emt 0:01:07]} Bxd5 {[%emt 0:02:41]} 15. Qxd5 {[%emt 0:00:25]} Qc6 {[%emt 0:04:07]} 16. Qd1 {[%emt 0:06:19]} h5 {[%emt 0:04:05]} 17. h4 {[%emt 0:01:45]} O-O-O {[%emt 0:02:39]} 18. Qf3 {[%emt 0:01:59]} Rh6 {[%emt 0:04:38]} 19. Rfd1 {[%emt 0:05:00]} Kb8 {[%emt 0:02:50]} 20. Rd3 {[%emt 0:02:02]} Rg8 {[%emt 0:03:49]} 21. c3 {[%emt 0:06:09]} Rhg6 {[%emt 0:03:19]} 22. Kh2 {[%emt 0:01:38]} Qb5 {[%emt 0:16:52]} 23. Rd2 {[%emt 0:02:08]} d5 {[%emt 0:04:45]} 24. b4 {[%emt 0:06:02]} dxe4 {[%emt 0:05:14]} 25. Qxe4 {[%emt 0:00:43]} Bxf2 {[%emt 0:03:41]} 26. Rxf2 {[%emt 0:00:42]} Rxg3 {[%emt 0:00:11]} 27. Qf5 {[%emt 0:08:19]} Qc4 {[%emt 0:03:28]} 28. Qxf6 {[%emt 0:04:03]} Qxc3 {[%emt 0:03:32]} 29. Qd6+ {[%emt 0:01:22]} Ka7 {[%emt 0:01:07]} 30. Qc5+ {[%emt 0:01:00]} Qxc5 {[%emt 0:00:01]} 31. bxc5 {[%emt 0:00:07]} e4 {[%emt 0:00:38]} 32. Re1 {[%emt 0:02:18]} f5 {[%emt 0:01:49]} 33. Bh3 {[%emt 0:00:36]} Rc3 {[%emt 0:02:36]} 34. Bxf5 {[%emt 0:01:13]} e3 {[%emt 0:01:37]} 35. Rc2 {[%emt 0:03:02]} Ra3 {[%emt 0:01:51]} 36. Be6 {[%emt 0:02:59]} Re8 {[%emt 0:02:31]} 37. Bb3 {[%emt 0:00:32]} Re4 {[%emt 0:01:04]} 38. Kg3 {[%emt 0:02:09]} Ra5 {[%emt 0:02:22]} 39. Kf3 {[%emt 0:02:26]} Rxh4 {[%emt 0:00:52]} 40. Rxe3 {[%emt 0:02:37]} Rb5 {[%emt 0:00:42]} 41. Re4 {[%emt 0:04:23]} Rxe4 {[%emt 0:03:26]} 42. Kxe4 {[%emt 0:00:09]} Kb8 {[%emt 0:00:23]} 43. Kd5 {[%emt 0:05:53]} b6 {[%emt 0:02:35]} 44. Kc6 {[%emt 0:00:50]} Ka7 {[%emt 0:01:05]} 45. Bd5 {[%emt 0:03:44]} bxc5 {[%emt 0:03:37]} 46. Rf2 {[%emt 0:01:19]} Rb6+ {[%emt 0:00:51]} 47. Kxc5 {[%emt 0:02:40]} Rb5+ {[%emt 0:01:12]} 48. Kc6 {[%emt 0:00:21]} Rb6+ {[%emt 0:00:31]} 49. Kc7 {[%emt 0:00:21]} Rh6 {[%emt 0:01:25]} 50. Rf8 {[%emt 0:02:02]} Rh7+ {[%emt 0:00:17]} 51. Kc6 {[%emt 0:00:16]} 1-0